Workbook

Sheet Hoja1
B1: Nombre y apellidos: ………………………………………………………………… | R1: :
N2: N.º de cifras del primer término | O2: Símbolo | P2: N.º de cifras del segundo término
C3: =IF(O4=Q4,CONCATENATE(N6, " ", O4, " ", Q6),CONCATENATE(N6, " ", O4, " ", P6)) -> 923,4 + 81 | G3: =IF(O4=Q4,CONCATENATE(N7, " ", O4, " ",Q7),CONCATENATE(N7, " ", O4, " ",P7)) -> 359,7 + 97 | K3: =IF(O4=Q4,CONCATENATE(N8, " ", O4, " ",Q8),CONCATENATE(N8, " ", O4, " ",P8)) -> 643,8 + 63 | Q3: + | R3: x
N4: 3 | O4: + | P4: 2 | Q4: - | R4: ← Parte entera
N5: 1 | P5: 0 | R5: ← Parte decimal
N6: =IF($N$5=0,RANDBETWEEN(10^($N$4-1),10^($N$4)-1),CONCATENATE(RANDBETWEEN(10^($N$4-1),10^($N$4)-1),",",RANDBETWEEN(10^($N$5-1),10^($N$5)-1))) -> 923,4 | P6: =IF($P$5=0,RANDBETWEEN(10^($P$4-1),10^($P$4)-1),CONCATENATE(RANDBETWEEN(10^($P$4-1),10^($P$4)-1),",",RANDBETWEEN(10^($P$5-1),10^($P$5)-1))) -> 81 | Q6: =IF($O$4=$Q$4, IF($P$5=0,RANDBETWEEN(10^($P$4-1),MIN(INT(N6),10^$P$4-1)),CONCATENATE(RANDBETWEEN(10^($P$4-1)-1,MIN(INT(N6)-1,10^$P$4-1)),",",RANDBETWEEN(10^($P$5-1),10^($P$5)-1))),IF($P$5=0,RANDBETWEEN(10^($P$4-1),10^($P$4)-1),CONCATENATE(RANDBETWEEN(10^($P$4-1),10^($P$4)-1),",",RANDBETWEEN(10^($P$5-1),10^($P$5)-1)))) -> 93 | R6: =N6-P6*INT(C44) -> -80400.6
N7: =IF($N$5=0,RANDBETWEEN(10^($N$4-1),10^($N$4)-1),CONCATENATE(RANDBETWEEN(10^($N$4-1),10^($N$4)-1),",",RANDBETWEEN(10^($N$5-1),10^($N$5)-1))) -> 359,7 | P7: =IF($P$5=0,RANDBETWEEN(10^($P$4-1),10^($P$4)-1),CONCATENATE(RANDBETWEEN(10^($P$4-1),10^($P$4)-1),",",RANDBETWEEN(10^($P$5-1),10^($P$5)-1))) -> 97 | Q7: =IF($O$4=$Q$4, IF($P$5=0,RANDBETWEEN(10^($P$4-1),MIN(INT(N7),10^$P$4-1)),CONCATENATE(RANDBETWEEN(10^($P$4-1)-1,MIN(INT(N7)-1,10^$P$4-1)),",",RANDBETWEEN(10^($P$5-1),10^($P$5)-1))),IF($P$5=0,RANDBETWEEN(10^($P$4-1),10^($P$4)-1),CONCATENATE(RANDBETWEEN(10^($P$4-1),10^($P$4)-1),",",RANDBETWEEN(10^($P$5-1),10^($P$5)-1)))) -> 91 | R7: =N7-P7*INT(G44) -> -43872.3
N8: =IF($N$5=0,RANDBETWEEN(10^($N$4-1),10^($N$4)-1),CONCATENATE(RANDBETWEEN(10^($N$4-1),10^($N$4)-1),",",RANDBETWEEN(10^($N$5-1),10^($N$5)-1))) -> 643,8 | P8: =IF($P$5=0,RANDBETWEEN(10^($P$4-1),10^($P$4)-1),CONCATENATE(RANDBETWEEN(10^($P$4-1),10^($P$4)-1),",",RANDBETWEEN(10^($P$5-1),10^($P$5)-1))) -> 63 | Q8: 85 | R8: =N8-P8*INT(K44) -> -43834.2
C10: =IF(O4=Q4,CONCATENATE(N10, " ", O4, " ",Q10),CONCATENATE(N10, " ", O4, " ",P10)) -> 565,4 + 76 | G10: =IF(O4=Q4,CONCATENATE(N11, " ", O4, " ",Q11),CONCATENATE(N11, " ", O4, " ",P11)) -> 581,4 + 65 | K10: =IF(O4=Q4,CONCATENATE(N12, " ", O4, " ",Q12),CONCATENATE(N12, " ", O4, " ",P12)) -> 938,8 + 76 | N10: =IF($N$5=0,RANDBETWEEN(10^($N$4-1),10^($N$4)-1),CONCATENATE(RANDBETWEEN(10^($N$4-1),10^($N$4)-1),",",RANDBETWEEN(10^($N$5-1),10^($N$5)-1))) -> 565,4 | P10: 76 | Q10: 99 | R10: =N10-P10*INT(C51) -> -48150.6
N11: 581,4 | P11: 65 | Q11: 77 | R11: =N11-P11*INT(G51) -> -41408.6
N12: =IF($N$5=0,RANDBETWEEN(10^($N$4-1),10^($N$4)-1),CONCATENATE(RANDBETWEEN(10^($N$4-1),10^($N$4)-1),",",RANDBETWEEN(10^($N$5-1),10^($N$5)-1))) -> 938,8 | P12: 76 | Q12: 38 | R12: =N12-P12*INT(K51) -> -76125.2
N13: 477,5 | P13: 11 | Q13: 67 | R13: =N13-P13*INT(C58) -> -4890.5
N14: =IF($N$5=0,RANDBETWEEN(10^($N$4-1),10^($N$4)-1),CONCATENATE(RANDBETWEEN(10^($N$4-1),10^($N$4)-1),",",RANDBETWEEN(10^($N$5-1),10^($N$5)-1))) -> 959,1 | P14: 48 | Q14: 23 | R14: =N14-P14*INT(G58) -> -47376.9
N15: 792,5 | P15: 58 | Q15: 35 | R15: =N15-P15*INT(K58) -> -48507.5
C17: =IF(O4=Q4,CONCATENATE(N13, " ", O4, " ",Q13),CONCATENATE(N13, " ", O4, " ",P13)) -> 477,5 + 11 | G17: =IF(O4=Q4,CONCATENATE(N14, " ", O4, " ",Q14),CONCATENATE(N14, " ", O4, " ",P14)) -> 959,1 + 48 | K17: =IF(O4=Q4,CONCATENATE(N15, " ", O4, " ",Q15),CONCATENATE(N15, " ", O4, " ",P15)) -> 792,5 + 58 | N17: 893,6 | P17: 80 | Q17: 75 | R17: =N17-P17*INT(C65) -> -76946.4
N18: =IF($N$5=0,RANDBETWEEN(10^($N$4-1),10^($N$4)-1),CONCATENATE(RANDBETWEEN(10^($N$4-1),10^($N$4)-1),",",RANDBETWEEN(10^($N$5-1),10^($N$5)-1))) -> 346,9 | P18: 52 | Q18: 92 | R18: =N18-P18*INT(G65) -> -20349.1
N19: 417,1 | P19: 86 | Q19: 53 | R19: =N19-P19*INT(K65) -> -42840.9
N20: 327,2 | P20: 53 | Q20: 84 | R20: =N20-P20*INT(C72) -> -19812.8
N21: 767,4 | P21: 20 | Q21: 53 | R21: =N21-P21*INT(G72) -> -14972.6
N22: =IF($N$5=0,RANDBETWEEN(10^($N$4-1),10^($N$4)-1),CONCATENATE(RANDBETWEEN(10^($N$4-1),10^($N$4)-1),",",RANDBETWEEN(10^($N$5-1),10^($N$5)-1))) -> 491,5 | P22: 74 | Q22: 94 | R22: =N22-P22*INT(K72) -> -41318.5
C24: =IF(O4=Q4,CONCATENATE(N17, " ", O4, " ",Q17),CONCATENATE(N17, " ", O4, " ",P17)) -> 893,6 + 80 | G24: =IF(O4=Q4,CONCATENATE(N18, " ", O4, " ",Q18),CONCATENATE(N18, " ", O4, " ",P18)) -> 346,9 + 52 | K24: =IF(O4=Q4,CONCATENATE(N19, " ", O4, " ",Q19),CONCATENATE(N19, " ", O4, " ",P19)) -> 417,1 + 86
C31: =IF(O4=Q4,CONCATENATE(N20, " ", O4, " ",Q20),CONCATENATE(N20, " ", O4, " ",P20)) -> 327,2 + 53 | G31: =IF(O4=Q4,CONCATENATE(N21, " ", O4, " ",Q21),CONCATENATE(N21, " ", O4, " ",P21)) -> 767,4 + 20 | K31: =IF(O4=Q4,CONCATENATE(N22, " ", O4, " ",Q22),CONCATENATE(N22, " ", O4, " ",P22)) -> 491,5 + 74
E37: RECURSOSEP 2017
E38: www.recursosep.com | J38: F. J. Franco Galvín
B39: SOLUCIONES
C41: =C3 -> 923,4 + 81 | G41: =G3 -> 359,7 + 97 | K41: =K3 -> 643,8 + 63
C44: =IF(O4=Q3,N6+P6,IF(O4=R3,N6*P6,IF(O4=R1,N6/P6,IF(O4=Q4,N6-Q6,"ERROR")))) -> 1004.4 | G44: =IF(O4=Q3,N7+P7,IF(O4=R3,N7*P7,IF(O4=R1,N7/P7,IF(O4=Q4,N7-Q7,"ERROR")))) -> 456.7 | K44: =IF(O4=Q3,N8+P8,IF(O4=R3,N8*P8,IF(O4=R1,N8/P8,IF(O4=Q4,N8-Q8,"ERROR")))) -> 706.8
B45: =IF($O$4=$R$1,R6,"") ->  | D45: =IF($O$4=$R$1,INT(C44),"") ->  | F45: =IF($O$4=$R$1,R7,"") ->  | H45: =IF($O$4=$R$1,INT(G44),"") ->  | J45: =IF($O$4=$R$1,R8,"") ->  | L45: =IF($O$4=$R$1,INT(K44),"") -> 
C48: =C10 -> 565,4 + 76 | G48: =G10 -> 581,4 + 65 | K48: =K10 -> 938,8 + 76
C51: =IF(O4=Q3,N10+P10,IF(O4=R3,N10*P10,IF(O4=R1,N10/P10,IF(O4=Q4,N10-Q10,"ERROR")))) -> 641.4 | G51: =IF(O4=Q3,N11+P11,IF(O4=R3,N11*P11,IF(O4=R1,N11/P11,IF(O4=Q4,N11-Q11,"ERROR")))) -> 646.4 | K51: =IF(O4=Q3,N12+P12,IF(O4=R3,N12*P12,IF(O4=R1,N12/P12,IF(O4=Q4,N12-Q12,"ERROR")))) -> 1014.8
B52: =IF($O$4=$R$1,R10,"") ->  | D52: =IF($O$4=$R$1,INT(C51),"") ->  | F52: =IF($O$4=$R$1,R11,"") ->  | H52: =IF($O$4=$R$1,INT(G51),"") ->  | J52: =IF($O$4=$R$1,R12,"") ->  | L52: =IF($O$4=$R$1,INT(K51),"") -> 
C55: =C17 -> 477,5 + 11 | G55: =G17 -> 959,1 + 48 | K55: =K17 -> 792,5 + 58
C58: =IF(O4=Q3,N13+P13,IF(O4=R3,N13*P13,IF(O4=R1,N13/P13,IF(O4=Q4,N13-Q13,"ERROR")))) -> 488.5 | G58: =IF(O4=Q3,N14+P14,IF(O4=R3,N14*P14,IF(O4=R1,N14/P14,IF(O4=Q4,N14-Q14,"ERROR")))) -> 1007.1 | K58: =IF(O4=Q3,N15+P15,IF(O4=R3,N15*P15,IF(O4=R1,N15/P15,IF(O4=Q4,N15-Q15,"ERROR")))) -> 850.5
B59: =IF($O$4=$R$1,R13,"") ->  | D59: =IF($O$4=$R$1,INT(C58),"") ->  | F59: =IF($O$4=$R$1,R14,"") ->  | H59: =IF($O$4=$R$1,INT(G58),"") ->  | J59: =IF($O$4=$R$1,R15,"") ->  | L59: =IF($O$4=$R$1,INT(K58),"") -> 
C62: =C24 -> 893,6 + 80 | G62: =G24 -> 346,9 + 52 | K62: =K24 -> 417,1 + 86
C65: =IF(O4=Q3,N17+P17,IF(O4=R3,N17*P17,IF(O4=R1,N17/P17,IF(O4=Q4,N17-Q17,"ERROR")))) -> 973.6 | G65: =IF(O4=Q3,N18+P18,IF(O4=R3,N18*P18,IF(O4=R1,N18/P18,IF(O4=Q4,N18-Q18,"ERROR")))) -> 398.9 | K65: =IF(O4=Q3,N19+P19,IF(O4=R3,N19*P19,IF(O4=R1,N19/P19,IF(O4=Q4,N19-Q19,"ERROR")))) -> 503.1
B66: =IF($O$4=$R$1,R17,"") ->  | D66: =IF($O$4=$R$1,INT(C65),"") ->  | F66: =IF($O$4=$R$1,R18,"") ->  | H66: =IF($O$4=$R$1,INT(G65),"") ->  | J66: =IF($O$4=$R$1,R19,"") ->  | L66: =IF($O$4=$R$1,INT(K65),"") -> 
C69: =C31 -> 327,2 + 53 | G69: =G31 -> 767,4 + 20 | K69: =K31 -> 491,5 + 74
C72: =IF(O4=Q3,N20+P20,IF(O4=R3,N20*P20,IF(O4=R1,N20/P20,IF(O4=Q4,N20-Q20,"ERROR")))) -> 380.2 | G72: =IF(O4=Q3,N21+P21,IF(O4=R3,N21*P21,IF(O4=R1,N21/P21,IF(O4=Q4,N21-Q21,"ERROR")))) -> 787.4 | K72: =IF(O4=Q3,N22+P22,IF(O4=R3,N22*P22,IF(O4=R1,N22/P22,IF(O4=Q4,N22-Q22,"ERROR")))) -> 565.5
B73: =IF($O$4=$R$1,R20,"") ->  | D73: =IF($O$4=$R$1,INT(C72),"") ->  | F73: =IF($O$4=$R$1,R21,"") ->  | H73: =IF($O$4=$R$1,INT(G72),"") ->  | J73: =IF($O$4=$R$1,R22,"") ->  | L73: =IF($O$4=$R$1,INT(K72),"") -> 
E75: RECURSOSEP 2017
E76: www.recursosep.com | J76: F. J. Franco Galvín
